[Event "WYCC 2018 O16"]
[Site "Halkidiki"]
[Date "2018.10.20"]
[Round "1"]
[White "Horvath, Dominik"]
[Black "Fossan, Aleksander"]
[Result "1-0"]
[ECO "A04"]
[WhiteElo "2447"]
[BlackElo "2173"]
[Annotator "ChessBase"]
[PlyCount "95"]
[EventDate "2018.10.20"]
[EventType "swiss"]
[EventCountry "GRE"]
[SourceTitle "playchess.com"]
[Source "ChessBase"]
[SourceQuality "1"]
[TimeControl "40/5400+30:1800+30"]

1. Nf3 {[%emt 0:00:00]} c5 {[%emt 0:00:00]} 2. c4 {[%emt 0:00:00]} Nc6 {[%emt 0:00:00]} 3. d4 {[%emt 0:01:35]} cxd4 {[%emt 0:00:07]} 4. Nxd4 {[%emt 0:00:04]} e5 {[%emt 0:02:00]} 5. Nb5 {[%emt 0:00:32]} a6 {[%emt 0:00:11]} 6. Nd6+ {[%emt 0:04:34]} Bxd6 {[%emt 0:00:07]} 7. Qxd6 {[%emt 0:00:03]} Qe7 {[%emt 0:00:12]} 8. Qd1 {[%emt 0:13:09]} Qb4+ {[%emt 0:10:11]} 9. Nd2 {[%emt 0:05:32]} Nf6 {[%emt 0:00:45]} 10. a3 {[%emt 0:01:29]} Qa5 {[%emt 0:01:12]} 11. e3 {[%emt 0:04:11]} O-O {[%emt 0:04:56]} 12. Be2 {[%emt 0:07:22]} d5 {[%emt 0:06:17]} 13. O-O {[%emt 0:01:50]} Be6 {[%emt 0:05:05]} 14. b4 {[%emt 0:01:13]} Qc7 {[%emt 0:01:06]} 15. cxd5 {[%emt 0:01:12]} Bxd5 {[%emt 0:00:48]} 16. Bb2 {[%emt 0:00:18]} Rfd8 {[%emt 0:02:23]} 17. Qe1 {[%emt 0:06:28]} Qe7 {[%emt 0:10:06]} 18. Rc1 {[%emt 0:03:50]} e4 {[%emt 0:02:27]} 19. Nc4 {[%emt 0:05:54]} Bxc4 {[%emt 0:01:32]} 20. Rxc4 {[%emt 0:02:24]} Ne5 {[%emt 0:04:04]} 21. Rd4 {[%emt 0:01:21]} Rac8 {[%emt 0:10:51]} 22. Qd2 {[%emt 0:06:23]} Rxd4 {[%emt 0:02:47]} 23. Bxd4 {[%emt 0:00:26]} Qc7 {[%emt 0:02:18]} 24. h3 {[%emt 0:05:33]} Nc4 {[%emt 0:08:47]} 25. Bxc4 {[%emt 0:02:30]} Qxc4 {[%emt 0:00:08]} 26. Bxf6 {[%emt 0:00:03]} gxf6 {[%emt 0:00:04]} 27. Qd7 {[%emt 0:00:33]} Qc6 {[%emt 0:03:05]} 28. Qg4+ {[%emt 0:00:51]} Kh8 {[%emt 0:00:01]} 29. Rd1 {[%emt 0:01:48]} Rg8 {[%emt 0:01:42]} 30. Qf4 {[%emt 0:00:10]} Rg6 {[%emt 0:05:51]} 31. h4 {[%emt 0:04:33]} Qe6 {[%emt 0:08:08]} 32. h5 {[%emt 0:01:53]} Rg5 {[%emt 0:02:24]} 33. h6 {[%emt 0:01:28]} Qe5 {[%emt 0:01:12]} 34. Rd8+ {[%emt 0:00:54]} Rg8 {[%emt 0:00:14]} 35. Qg4 {[%emt 0:01:58]} Qg5 {[%emt 0:01:58]} 36. Rxg8+ {[%emt 0:00:33]} Qxg8 {[%emt 0:00:01]} 37. Qxe4 {[%emt 0:00:34]} Qd8 {[%emt 0:01:29]} 38. g3 {[%emt 0:01:12]} b5 {[%emt 0:01:10]} 39. Qb7 {[%emt 0:00:52]} Kg8 {[%emt 0:00:27]} 40. Qe4 {[%emt 0:00:00]} Qf8 {[%emt 0:00:00]} 41. Qf4 {[%emt 0:02:17]} Qd8 {[%emt 0:01:37]} 42. Qg4+ {[%emt 0:00:11]} Kf8 {[%emt 0:00:14]} 43. Qg7+ {[%emt 0:00:09]} Ke7 {[%emt 0:00:05]} 44. Qxh7 {[%emt 0:00:23]} Qd1+ {[%emt 0:00:07]} 45. Kg2 {[%emt 0:00:04]} Qd5+ {[%emt 0:00:19]} 46. e4 Qg5 {[%emt 0:00:30]} 47. Qg7 {[%emt 0:00:20]} Qe5 {[%emt 0:00:31]} 48. Qg4 1-0

[Event "WYCC 2018 O16"]
[Site "Halkidiki"]
[Date "2018.10.20"]
[Round "1"]
[White "Vlachos, Anatole"]
[Black "Lou, Vincent"]
[Result "1-0"]
[ECO "A45"]
[WhiteElo "2435"]
[BlackElo "2155"]
[Annotator "NA"]
[PlyCount "95"]
[EventDate "2018.10.20"]
[EventType "swiss"]
[EventCountry "GRE"]
[SourceTitle "playchess.com"]
[Source "ChessBase"]
[SourceQuality "1"]
[TimeControl "40/5400+30:1800+30"]

1. d4 {[%emt 0:00:00]} Nf6 {[%emt 0:00:00]} 2. Bg5 {[%emt 0:00:00]} g6 {[%emt 0:00:00]} 3. Bxf6 {[%emt 0:00:00]} exf6 {[%emt 0:00:00]} 4. e3 {[%emt 0:00:20]} b6 {[%emt 0:00:27]} 5. h4 {[%emt 0:01:16]} h5 {[%emt 0:01:44]} 6. Be2 {[%emt 0:07:30]} Bb7 {[%emt 0:03:40]} 7. Bf3 {[%emt 0:00:55]} c6 {[%emt 0:00:44]} 8. Ne2 {[%emt 0:00:35]} Bg7 {[%emt 0:00:36]} 9. c4 {[%emt 0:01:43]} d6 {[%emt 0:03:40]} 10. Nbc3 {[%emt 0:00:10]} Nd7 {[%emt 0:02:02]} 11. b4 {[%emt 0:07:07]} Qc7 {[%emt 0:09:53]} 12. b5 {[%emt 0:01:38]} c5 {[%emt 0:01:49]} 13. Nd5 {[%emt 0:00:14]} Qb8 {[%emt 0:03:27]} 14. Nef4 {[%emt 0:04:36]} f5 {[%emt 0:03:20]} 15. O-O {[%emt 0:03:16]} Nf6 {[%emt 0:10:47]} 16. a4 {[%emt 0:00:13]} Nxd5 {[%emt 0:08:04]} 17. Nxd5 {[%emt 0:03:22]} O-O {[%emt 0:07:33]} 18. dxc5 {[%emt 0:02:45]} dxc5 {[%emt 0:01:42]} 19. Ra3 {[%emt 0:01:14]} Re8 {[%emt 0:08:43]} 20. g3 {[%emt 0:02:10]} ({White should play} 20. a5 $16) 20... Qe5 {[%emt 0:11:33]} 21. a5 {[%emt 0:01:19]} Rad8 {[%emt 0:01:25]} 22. axb6 {[%emt 0:10:44]} axb6 {[%emt 0:00:17]} 23. Ra7 {[%emt 0:00:06]} Bc8 {[%emt 0:03:36]} 24. Qc2 {[%emt 0:03:11]} Rd6 {[%emt 0:02:28]} 25. Rd1 {[%emt 0:01:24]} Bf8 {[%emt 0:04:19]} 26. Qa2 {[%emt 0:03:54]} Red8 {[%emt 0:04:42]} 27. Ra8 {[%emt 0:01:44]} R6d7 {[%emt 0:04:11]} 28. Qa4 {[%emt 0:02:27]} Qe6 {[%emt 0:00:52]} 29. Rb8 {[%emt 0:01:16]} Bb7 {[%emt 0:01:34]} 30. Rxd8 {[%emt 0:00:55]} Rxd8 {[%emt 0:00:29]} 31. Qa7 {[%emt 0:00:12]} Ba8 {[%emt 0:01:19]} ({Black should play} 31... Rd7 $1 $14) 32. Rd2 {[%emt 0:03:04]} Bxd5 $18 {[%emt 0:00:29]} (32... f4 $16) 33. Bxd5 {[%emt 0:00:02]} Rd7 {[%emt 0:00:19]} 34. Qa8 {[%emt 0:02:02]} Qf6 {[%emt 0:00:39]} 35. Ra2 {[%emt 0:00:54]} Qd8 {[%emt 0:00:34]} 36. Qxd8 {[%emt 0:00:27]} Rxd8 {[%emt 0:00:05]} 37. Ra7 {[%emt 0:00:02]} Rb8 {[%emt 0:00:55]} 38. Rxf7 {[%emt 0:00:53]} Kh8 {[%emt 0:00:26]} 39. e4 {[%emt 0:00:20]} fxe4 {[%emt 0:00:33]} 40. Bxe4 {[%emt 0:00:00]} Rd8 {[%emt 0:00:00]} 41. Bxg6 {[%emt 0:00:38]} Bg7 {[%emt 0:00:53]} 42. Bxh5 {[%emt 0:00:34]} Rd4 {[%emt 0:01:02]} 43. Be2 {[%emt 0:00:07]} Rd2 {[%emt 0:00:40]} 44. Kf1 {[%emt 0:00:56]} Rc2 {[%emt 0:01:15]} 45. h5 {[%emt 0:00:24]} Bd4 {[%emt 0:00:37]} 46. h6 {[%emt 0:01:52]} Rc1+ {[%emt 0:00:54]} 47. Kg2 {[%emt 0:00:01]} Rc2 {[%emt 0:00:14]} 48. Rf8+ {[%emt 0:00:02]} 1-0

[Event "WYCC 2018 O16"]
[Site "Halkidiki"]
[Date "2018.10.20"]
[Round "1"]
[White "Zarubitski, Viachaslau"]
[Black "Bulockin, Martin"]
[Result "1-0"]
[ECO "B67"]
[WhiteElo "2417"]
[BlackElo "2144"]
[Annotator "ChessBase"]
[PlyCount "89"]
[EventDate "2018.10.20"]
[EventType "swiss"]
[EventCountry "GRE"]
[SourceTitle "playchess.com"]
[Source "ChessBase"]
[SourceQuality "1"]
[TimeControl "40/5400+30:1800+30"]

1. e4 {[%emt 0:00:00]} c5 {[%emt 0:00:09]} 2. Nf3 {[%emt 0:00:00]} d6 {[%emt 0:00:00]} 3. d4 {[%emt 0:00:00]} cxd4 {[%emt 0:00:00]} 4. Nxd4 {[%emt 0:00:00]} Nf6 {[%emt 0:00:00]} 5. Nc3 {[%emt 0:00:00]} Nc6 {[%emt 0:00:08]} 6. Bg5 {[%emt 0:00:00]} Bd7 {[%emt 0:00:38]} 7. Qd2 {[%emt 0:00:27]} a6 {[%emt 0:01:18]} 8. O-O-O {[%emt 0:01:20]} e6 {[%emt 0:00:37]} 9. f3 {[%emt 0:00:57]} Be7 {[%emt 0:05:50]} 10. Kb1 {[%emt 0:06:00]} b5 {[%emt 0:01:23]} 11. h4 {[%emt 0:00:53]} h6 {[%emt 0:00:50]} 12. Be3 {[%emt 0:00:56]} h5 {[%emt 0:02:40]} 13. Nxc6 {[%emt 0:11:38]} Bxc6 {[%emt 0:01:02]} 14. Bg5 {[%emt 0:00:15]} b4 {[%emt 0:18:19]} 15. Ne2 {[%emt 0:00:46]} d5 {[%emt 0:00:20]} 16. Nd4 {[%emt 0:02:14]} Bb7 {[%emt 0:00:21]} 17. e5 {[%emt 0:00:30]} Nd7 {[%emt 0:00:16]} 18. Bxe7 {[%emt 0:01:25]} Qxe7 {[%emt 0:00:01]} 19. f4 {[%emt 0:00:06]} g6 {[%emt 0:04:00]} 20. Rh3 {[%emt 0:05:26]} Nb6 {[%emt 0:23:53]} 21. Be2 {[%emt 0:04:29]} Rc8 {[%emt 0:01:36]} 22. Rdh1 {[%emt 0:09:53]} Nc4 {[%emt 0:03:41]} 23. Qd1 {[%emt 0:00:47]} Qc5 {[%emt 0:01:49]} 24. g4 {[%emt 0:00:40]} hxg4 {[%emt 0:00:49]} 25. Bxg4 {[%emt 0:00:05]} Ke7 {[%emt 0:01:05]} 26. h5 {[%emt 0:26:44]} gxh5 {[%emt 0:02:43]} 27. Bxh5 {[%emt 0:00:11]} Rcf8 {[%emt 0:06:37]} 28. Qg1 {[%emt 0:05:54]} Nd2+ {[%emt 0:03:02]} 29. Ka1 {[%emt 0:04:37]} Ne4 {[%emt 0:00:26]} 30. Qe3 {[%emt 0:01:39]} Bc8 {[%emt 0:03:15]} 31. Bf3 {[%emt 0:02:57]} Rxh3 {[%emt 0:00:45]} 32. Rxh3 {[%emt 0:00:00]} Qc4 {[%emt 0:00:45]} 33. Be2 {[%emt 0:01:24]} Qc7 {[%emt 0:00:41]} 34. Qg1 {[%emt 0:01:34]} Bd7 {[%emt 0:03:45]} 35. Rh7 {[%emt 0:02:28]} Qb8 {[%emt 0:02:37]} 36. Bh5 {[%emt 0:01:26]} Be8 {[%emt 0:04:24]} 37. Bf3 {[%emt 0:02:32]} Bd7 {[%emt 0:01:55]} 38. Bh5 {[%emt 0:04:44]} Be8 {[%emt 0:00:02]} 39. Bf3 {[%emt 0:02:24]} Bd7 {[%emt 0:00:20]} 40. Bxe4 {[%emt 0:00:00]} dxe4 {[%emt 0:00:00]} 41. Qg5+ {[%emt 0:16:47]} Ke8 {[%emt 0:00:09]} 42. Rh1 {[%emt 0:01:01]} Qb6 {[%emt 0:07:53]} 43. Rd1 {[%emt 0:00:55]} Rh8 {[%emt 0:04:30]} 44. Qf6 {[%emt 0:01:00]} Rg8 {[%emt 0:00:59]} 45. Nf5 {[%emt 0:00:39]} 1-0

[Event "WYCC 2018 O16"]
[Site "Halkidiki"]
[Date "2018.10.20"]
[Round "1"]
[White "Teclaf, Pawel"]
[Black "Alivodic, Dario"]
[Result "1-0"]
[ECO "A06"]
[WhiteElo "2384"]
[BlackElo "2082"]
[Annotator "NA"]
[PlyCount "59"]
[EventDate "2018.10.20"]
[EventType "swiss"]
[EventCountry "GRE"]
[SourceTitle "playchess.com"]
[Source "ChessBase"]
[SourceQuality "1"]
[TimeControl "40/5400+30:1800+30"]

1. Nf3 {[%emt 0:00:00]} d5 {[%emt 0:00:00]} 2. g3 {[%emt 0:00:00]} c6 {[%emt 0:00:00]} 3. b3 {[%emt 0:01:59]} Nf6 {[%emt 0:00:03]} 4. Bb2 {[%emt 0:00:23]} Bf5 {[%emt 0:00:28]} 5. Bg2 {[%emt 0:00:14]} e6 {[%emt 0:01:31]} 6. O-O {[%emt 0:00:17]} Be7 {[%emt 0:00:07]} 7. d3 {[%emt 0:00:50]} h6 {[%emt 0:00:21]} 8. Nbd2 {[%emt 0:00:45]} O-O {[%emt 0:00:10]} 9. Re1 {[%emt 0:01:59]} Bh7 {[%emt 0:01:39]} 10. e4 {[%emt 0:00:48]} Qb6 {[%emt 0:01:28] A07: Réti Opening: New York and Capablanca Systems} (10... a5 11. a4 Na6 12. Qe2 Nb4 13. Rec1 Re8 14. h3 Qb6 15. e5 Nd7 16. Ne1 c5 17. Kh2 f6 18. exf6 Bxf6 19. Bxf6 Nxf6 {1-0 (48) Sjugirov,S (2677)-Burmakin,V (2494) St Petersburg 2018}) 11. Qe2 {[%emt 0:15:27]} Nbd7 {[%emt 0:00:49]} 12. h3 $146 ({Predecessor:} 12. Kh1 Rfd8 13. Rac1 a5 14. a3 Bf8 15. h3 a4 16. b4 c5 17. c3 {0-1 (35) Mainka,G (2345)-Boidman,Y (2432) Germany 2002}) 12... a5 {[%emt 0:03:03]} 13. a3 {[%emt 0:08:11]} a4 {[%emt 0:03:43]} (13... Rfd8 $11) 14. b4 {[%emt 0:01:45]} c5 {[%emt 0:04:55]} 15. exd5 {[%emt 0:00:57]} exd5 {[%emt 0:04:24]} 16. Qxe7 {[%emt 0:02:32]} Rfe8 {[%emt 0:00:11]} 17. Bxf6 {[%emt 0:00:02]} Rxe7 {[%emt 0:00:38]} 18. Bxe7 {[%emt 0:00:04]} cxb4 {[%emt 0:00:27]} 19. Bxb4 Rc8 {[%emt 0:00:24]} 20. Re7 {[%emt 0:05:31]} Nf6 {[%emt 0:00:55]} 21. Ne5 {[%emt 0:04:33]} Rxc2 {[%emt 0:02:26]} 22. Bxd5 {[%emt 0:03:49]} Bxd3 {[%emt 0:02:27]} 23. Bxf7+ {[%emt 0:03:15]} Kh7 {[%emt 0:00:52]} 24. Nxd3 $18 {[%emt 0:02:52]} Qd4 {[%emt 0:00:06]} 25. Rae1 {[%emt 0:03:17]} Qxd3 {[%emt 0:00:26]} 26. R7e3 {[%emt 0:03:42]} Qd8 {[%emt 0:07:09]} 27. Nf3 {[%emt 0:01:02]} b6 28. Ne5 {[%emt 0:00:44]} Rc7 {[%emt 0:01:45]} 29. Bg6+ {[%emt 0:00:10]} Kg8 30. Ng4 1-0

[Event "WYCC 2018 O16"]
[Site "Halkidiki"]
[Date "2018.10.20"]
[Round "1"]
[White "Gatineau, Yovann"]
[Black "Fernandez Garcia, Gumersindo"]
[Result "1-0"]
[ECO "A48"]
[WhiteElo "2376"]
[BlackElo "2065"]
[Annotator "NA"]
[PlyCount "115"]
[EventDate "2018.10.20"]
[EventType "swiss"]
[EventCountry "GRE"]
[SourceTitle "playchess.com"]
[Source "ChessBase"]
[SourceQuality "1"]
[TimeControl "40/5400+30:1800+30"]

1. d4 {[%emt 0:00:00]} Nf6 {[%emt 0:00:09]} 2. Nf3 {[%emt 0:00:07]} g6 {[%emt 0:00:55]} 3. c4 {[%emt 0:00:29]} Bg7 {[%emt 0:00:15]} 4. Nc3 {[%emt 0:00:52]} d6 {[%emt 0:01:07]} 5. e4 {[%emt 0:00:19]} O-O {[%emt 0:00:11]} 6. h3 {[%emt 0:01:09]} e5 {[%emt 0:00:50]} 7. dxe5 {[%emt 0:00:29]} dxe5 {[%emt 0:00:06]} 8. Be3 {[%emt 0:00:03] E90: King's Indian: Classical: Early deviations and 6 h3} (8. Qxd8 Rxd8 9. Bg5 Na6 10. Nd5 Rd6 11. Bxf6 Bxf6 12. Rc1 b6 13. b4 c6 14. Nxf6+ Rxf6 15. a3 c5 16. b5 Nc7 17. Rd1 a6 18. Rd8+ {0-1 (44) Wang,Y (2690)-Saric,I (2669) Riadh 2017}) 8... c6 {[%emt 0:05:01]} 9. c5 {[%emt 0:00:42]} Qe7 {[%emt 0:08:44]} 10. Nd2 $146 {[%emt 0:01:44]} ({Predecessor:} 10. Be2 Nh5 11. O-O Nf4 12. Bc4 Ne6 13. Qd6 Qf6 14. Rad1 h6 15. Qd2 Kh7 {½-½ (25) Miladinovic,L (2078)-Martinovic,S (2447) Paracin 2012}) 10... Rd8 {[%emt 0:09:03]} 11. Qa4 {[%emt 0:06:55]} Be6 {[%emt 0:06:04]} 12. Bc4 {[%emt 0:02:11]} Bxc4 {[%emt 0:02:32]} 13. Nxc4 {[%emt 0:00:41]} Na6 {[%emt 0:08:21]} 14. b4 {[%emt 0:06:43]} Rd3 {[%emt 0:05:18]} 15. Rc1 {[%emt 0:00:55]} Rd4 {[%emt 0:10:23]} 16. Qb3 {[%emt 0:13:35]} Nxe4 {[%emt 0:10:30]} 17. Bxd4 {[%emt 0:00:35]} exd4 {[%emt 0:00:18]} 18. Nxe4 {[%emt 0:00:14]} Qxe4+ {[%emt 0:00:08]} 19. Kf1 {[%emt 0:00:05]} Re8 {[%emt 0:01:18]} 20. Nd6 {[%emt 0:09:54]} Qe2+ {[%emt 0:00:52]} 21. Kg1 {[%emt 0:00:06]} Re7 {[%emt 0:01:16]} 22. Rc2 {[%emt 0:03:07]} Qe5 {[%emt 0:07:26]} (22... Qe1+ $17 23. Kh2 Qxb4) 23. a3 {[%emt 0:04:22]} Bf8 {[%emt 0:08:03]} 24. Qf3 {[%emt 0:02:34]} Nc7 $14 {[%emt 0:03:31]} (24... b6 $11) 25. g3 {[%emt 0:00:48]} Ne8 {[%emt 0:03:27]} 26. Nc4 {[%emt 0:02:31]} Qe6 {[%emt 0:00:55]} 27. Kg2 {[%emt 0:00:20]} Rd7 {[%emt 0:01:07]} 28. Rd1 {[%emt 0:01:58]} Ng7 {[%emt 0:00:47]} 29. Na5 {[%emt 0:03:35]} Qf5 {[%emt 0:02:14]} 30. Qxf5 {[%emt 0:02:02]} Nxf5 {[%emt 0:00:01]} 31. Re2 {[%emt 0:00:12]} Ng7 {[%emt 0:02:14]} 32. Re4 {[%emt 0:04:54]} Ne6 {[%emt 0:00:06]} 33. f4 {[%emt 0:00:04]} h5 {[%emt 0:01:28]} 34. g4 {[%emt 0:02:48]} hxg4 {[%emt 0:00:17]} 35. hxg4 {[%emt 0:00:06]} d3 {[%emt 0:01:26]} 36. f5 {[%emt 0:00:21]} gxf5 {[%emt 0:00:50]} 37. gxf5 {[%emt 0:00:06]} Ng7 {[%emt 0:00:09]} 38. f6 {[%emt 0:01:43]} Nf5 {[%emt 0:00:20]} 39. Re5 {[%emt 0:03:03]} Nh4+ {[%emt 0:01:05]} 40. Kf2 {[%emt 0:00:00]} Ng6 {[%emt 0:00:00]} 41. Re3 {[%emt 0:01:20]} d2 {[%emt 0:02:37]} 42. Rh3 {[%emt 0:03:42]} b6 {[%emt 0:05:14]} 43. cxb6 {[%emt 0:07:28]} axb6 {[%emt 0:00:08]} 44. Nxc6 {[%emt 0:00:04]} Rd6 {[%emt 0:01:52]} 45. Ne7+ Nxe7 {[%emt 0:00:13]} 46. fxe7 {[%emt 0:00:47]} Bxe7 {[%emt 0:00:03]} 47. Rg3+ {[%emt 0:01:49]} Kf8 {[%emt 0:00:10]} 48. Ke2 {[%emt 0:00:07]} Bh4 {[%emt 0:02:46]} 49. Rd3 {[%emt 0:00:08]} Re6+ {[%emt 0:01:18]} 50. Kxd2 {[%emt 0:00:08]} Ke7 {[%emt 0:01:12]} 51. Kc3 {[%emt 0:00:43]} Rc6+ {[%emt 0:01:46]} 52. Kb3 {[%emt 0:00:29]} f5 {[%emt 0:01:03]} 53. Rf1 {[%emt 0:03:22]} Rf6 {[%emt 0:00:13]} 54. Rh3 {[%emt 0:00:07]} Bg5 {[%emt 0:03:21]} 55. Rh5 {[%emt 0:00:05]} Be3 {[%emt 0:01:48]} 56. Rfxf5 {[%emt 0:00:37]} Rxf5 {[%emt 0:00:45]} 57. Rxf5 {[%emt 0:00:03]} Kd6 {[%emt 0:00:08]} 58. Kc4 {[%emt 0:00:06] Kd5+} 1-0

[Event "WYCC 2018 O16"]
[Site "Halkidiki"]
[Date "2018.10.20"]
[Round "1"]
[White "Schitco, Ivan"]
[Black "Fainman, Tomer"]
[Result "1-0"]
[ECO "A11"]
[WhiteElo "2376"]
[BlackElo "2054"]
[Annotator "NA"]
[PlyCount "63"]
[EventDate "2018.10.20"]
[EventType "swiss"]
[EventCountry "GRE"]
[SourceTitle "playchess.com"]
[Source "ChessBase"]
[SourceQuality "1"]
[TimeControl "40/5400+30:1800+30"]

1. c4 {[%emt 0:00:00]} c6 {[%emt 0:00:00]} 2. g3 {[%emt 0:00:00]} d5 {[%emt 0:00:00]} 3. Nf3 {[%emt 0:00:00]} Nf6 {[%emt 0:00:19]} 4. Bg2 {[%emt 0:00:20]} g6 {[%emt 0:05:43]} 5. b3 {[%emt 0:00:33]} Bg7 {[%emt 0:00:20]} 6. Bb2 {[%emt 0:00:23]} Bf5 {[%emt 0:07:40]} 7. O-O {[%emt 0:01:52]} O-O {[%emt 0:03:25]} 8. d3 {[%emt 0:01:17]} Qd7 {[%emt 0:04:28]} 9. Nbd2 {[%emt 0:06:16]} Bh3 {[%emt 0:01:00] LiveBook: 6 Games} 10. Qc2 $14 {[%emt 0:07:08]} Na6 {[%emt 0:14:59]} 11. a3 {[%emt 0:02:05]} Rac8 {[%emt 0:01:31]} 12. b4 {[%emt 0:04:59]} Rfd8 {[%emt 0:01:44]} 13. Rfd1 {[%emt 0:03:14]} Bxg2 {[%emt 0:00:19]} 14. Kxg2 {[%emt 0:00:06]} c5 {[%emt 0:06:57]} 15. b5 {[%emt 0:02:31]} Nc7 {[%emt 0:00:21]} 16. e4 {[%emt 0:14:17]} d4 {[%emt 0:11:36]} 17. h3 {[%emt 0:03:38]} h6 {[%emt 0:08:05]} 18. Rf1 {[%emt 0:01:10]} Qe8 {[%emt 0:04:59]} 19. e5 {[%emt 0:03:29]} Nd7 {[%emt 0:03:13]} 20. Rae1 {[%emt 0:01:00]} Kh7 {[%emt 0:01:12]} 21. Bc1 {[%emt 0:01:18]} Qh8 {[%emt 0:02:17]} 22. Ne4 {[%emt 0:01:00]} Ne6 {[%emt 0:01:42]} 23. Nh2 {[%emt 0:01:55]} Nxe5 {[%emt 0:03:55]} 24. f4 {[%emt 0:00:28]} Nd7 {[%emt 0:00:52]} 25. f5 {[%emt 0:00:17]} Nc7 {[%emt 0:00:34]} 26. fxg6+ {[%emt 0:04:08]} fxg6 {[%emt 0:06:00]} 27. Rf7 {[%emt 0:00:14]} Re8 {[%emt 0:03:44]} 28. Bxh6 {[%emt 0:01:37]} Kxh6 {[%emt 0:00:54]} 29. Ng5 {[%emt 0:00:40]} Bf6 {[%emt 0:05:28]} 30. h4 {[%emt 0:01:02]} Ne5 {[%emt 0:01:07]} 31. Rxe5 {[%emt 0:00:17]} Bxe5 {[%emt 0:00:08]} 32. Ng4+ {[%emt 0:00:49]} 1-0

[Event "WYCC 2018 O16"]
[Site "Halkidiki"]
[Date "2018.10.20"]
[Round "1"]
[White "Shubin, Kirill"]
[Black "Onslow, Alfie"]
[Result "1/2-1/2"]
[ECO "B48"]
[WhiteElo "2369"]
[BlackElo "2037"]
[Annotator "NA"]
[PlyCount "47"]
[EventDate "2018.10.20"]
[EventType "swiss"]
[EventCountry "GRE"]
[SourceTitle "playchess.com"]
[Source "ChessBase"]
[SourceQuality "1"]
[TimeControl "40/5400+30:1800+30"]

1. e4 {[%emt 0:00:00]} c5 {[%emt 0:00:00]} 2. Nf3 {[%emt 0:00:00]} e6 {[%emt 0:00:00]} 3. d4 {[%emt 0:00:00]} cxd4 {[%emt 0:00:00]} 4. Nxd4 {[%emt 0:00:00]} Nc6 {[%emt 0:00:03]} 5. Nc3 {[%emt 0:00:00]} Qc7 {[%emt 0:00:05]} 6. Be3 {[%emt 0:00:00]} a6 {[%emt 0:00:06]} 7. Qf3 {[%emt 0:00:05]} Nf6 {[%emt 0:01:04]} 8. Nxc6 {[%emt 0:00:04]} dxc6 {[%emt 0:01:04]} 9. Qg3 {[%emt 0:00:27]} Qxg3 {[%emt 0:10:26]} 10. hxg3 {[%emt 0:00:05]} e5 {[%emt 0:01:05]} 11. O-O-O {[%emt 0:05:45]} b5 {[%emt 0:07:32]} 12. f3 {[%emt 0:12:12]} Be6 {[%emt 0:04:57]} 13. g4 {[%emt 0:01:33]} Nd7 {[%emt 0:13:35]} 14. Kb1 {[%emt 0:13:19]} Bc5 {[%emt 0:03:22]} 15. Bxc5 {[%emt 0:01:07]} Nxc5 {[%emt 0:00:02]} 16. Rh5 {[%emt 0:13:03]} g6 $15 {[%emt 0:12:54]} 17. Rh4 {[%emt 0:14:14]} Kf8 {[%emt 0:07:27]} 18. Re1 {[%emt 0:07:31]} Kg7 {[%emt 0:01:59]} 19. g3 {[%emt 0:00:54]} Rad8 {[%emt 0:09:32]} 20. Nd1 {[%emt 0:05:11]} Rd4 {[%emt 0:07:21]} 21. Ne3 {[%emt 0:01:04]} a5 {[%emt 0:01:56]} 22. Bg2 {[%emt 0:04:44]} b4 {[%emt 0:03:01]} 23. Reh1 {[%emt 0:01:59]} a4 {[%emt 0:04:27]} 24. b3 {[%emt 0:00:05]} 1/2-1/2

[Event "WYCC 2018 O16"]
[Site "Halkidiki"]
[Date "2018.10.20"]
[Round "1"]
[White "Wachinger, Nikolas"]
[Black "Loukopoulos, Panagiotis-Athanasi"]
[Result "1/2-1/2"]
[ECO "B40"]
[WhiteElo "2360"]
[BlackElo "1988"]
[Annotator "NA"]
[PlyCount "48"]
[EventDate "2018.10.20"]
[EventType "swiss"]
[EventCountry "GRE"]
[SourceTitle "playchess.com"]
[Source "ChessBase"]
[SourceQuality "1"]
[TimeControl "40/5400+30:1800+30"]

1. e4 {[%emt 0:00:00]} c5 {[%emt 0:00:00]} 2. Nf3 {[%emt 0:00:00]} e6 {[%emt 0:00:00]} 3. g3 {[%emt 0:00:00]} Nc6 {[%emt 0:04:10]} 4. Bg2 {[%emt 0:00:00]} Nf6 {[%emt 0:01:37]} 5. Qe2 {[%emt 0:00:09]} d5 {[%emt 0:04:07]} 6. exd5 {[%emt 0:00:15]} Nxd5 {[%emt 0:00:27]} 7. O-O {[%emt 0:00:12]} Be7 {[%emt 0:01:26]} 8. Rd1 {[%emt 0:00:15]} Bf6 {[%emt 0:03:59]} 9. c3 {[%emt 0:13:29]} O-O {[%emt 0:00:57]} 10. d4 $11 {[%emt 0:00:40]} cxd4 {[%emt 0:00:21]} 11. cxd4 {[%emt 0:00:21]} b6 {[%emt 0:08:53]} 12. Nc3 {[%emt 0:02:16]} Nxc3 {[%emt 0:05:53]} 13. bxc3 {[%emt 0:00:04]} Bb7 {[%emt 0:00:13]} 14. Ne5 {[%emt 0:13:51]} Bxe5 {[%emt 0:12:27]} 15. dxe5 {[%emt 0:00:15]} Qc7 {[%emt 0:04:44]} 16. Ba3 {[%emt 0:01:00]} Rfd8 {[%emt 0:00:26]} 17. Bd6 {[%emt 0:02:11]} Qc8 {[%emt 0:00:05]} 18. Qg4 {[%emt 0:09:00]} Rd7 {[%emt 0:04:12]} 19. Rac1 {[%emt 0:09:32]} Na5 {[%emt 0:07:00]} 20. Rd4 {[%emt 0:09:41]} Bxg2 {[%emt 0:00:19]} 21. Kxg2 {[%emt 0:00:07]} Qc6+ {[%emt 0:02:23]} 22. Kg1 {[%emt 0:00:10]} b5 {[%emt 0:08:52]} 23. Rcd1 {[%emt 0:12:08]} Nc4 {[%emt 0:07:01]} 24. Qe2 {[%emt 0:09:26]} Rad8 {[%emt 0:06:53]} 1/2-1/2